bitfinex-derivatives/quotes_SOLF0:USTF0_20260213
["timestamp","ask_amount","ask_price","bid_price","bid_amount"]
[1771008334737,3.17641832,85.15,85.11,9.52962147]
[1771008336445,3.17641832,85.15,85.111,10.5812]
[1771008336646,3.17641832,85.15,85.112,9.52962147]
[1771008336842,3.17641832,85.16,85.115,10.5807]
[1771008337141,3.17641832,85.15,85.116,9.49718249]
[1771008339840,3.17641832,85.15,85.117,10.5805]
[1771008340446,10.96429857,85.223,85.075,14.05414906]
[1771008340447,11.9837514,85.18,85.131,9.49718249]
[1771008340640,3.17641832,85.19,85.131,9.49718249]
[1771008341547,3.17641832,85.19,85.157,10.5755]
[1771008341748,3.17641832,85.19,85.147,9.49718249]
[1771008342246,3.17641832,85.19,85.14,3.17641832]
[1771008342247,3.17641832,85.19,85.151,9.49718249]
[1771008342947,3.17641832,85.19,85.154,10.5759]
[1771008343147,3.17641832,85.2,85.151,9.49718249]
[1771008343552,3.17641832,85.19,85.151,9.49718249]
[1771008344047,3.17641832,85.19,85.131,9.49718249]
[1771008344249,3.17641832,85.19,85.141,9.49718249]
[1771008344650,3.17641832,85.18,85.145,10.577]
[1771008345544,8.80733308,85.195,85.152,10.5761]
[1771008345753,3.17641832,85.19,85.152,10.5761]
[1771008346052,3.17641832,85.2,85.151,9.49718249]
[1771008346252,3.17641832,85.2,85.161,10.575]
[1771008346851,3.17641832,85.2,85.153,10.576]
[1771008347054,3.17641832,85.2,85.151,9.49718249]
[1771008347754,8.80733308,85.199,85.151,9.49718249]
[1771008348457,3.17641832,85.19,85.151,9.49718249]
[1771008348657,8.80733308,85.199,85.151,9.49718249]
[1771008348953,2.04326676,85.227,85.111,21.1625]
[1771008348954,3.17641832,85.21,85.161,9.49718249]
[1771008349157,3.17641832,85.19,85.161,9.49718249]
[1771008349358,3.17641832,85.19,85.147,9.49718249]
[1771008349560,3.17641832,85.18,85.147,9.49718249]
[1771008351355,3.17641832,85.17,85.132,10.5786]
[1771008352053,8.73248629,85.183,85.138,9.49718249]
[1771008352054,3.17641832,85.18,85.138,9.49718249]
[1771008352657,3.17641832,85.18,85.14,9.49718249]
[1771008354259,3.17641832,85.18,85.131,9.49718249]
[1771008355463,3.17641832,85.18,85.136,9.49718249]
[1771008355659,3.17641832,85.19,85.141,9.49718249]
[1771008356657,3.17641832,85.18,85.146,10.5769]
[1771008356862,3.17641832,85.19,85.147,9.49718249]
[1771008357850,3.17641832,85.19,85.149,9.49718249]
[1771008358057,3.17641832,85.2,85.149,9.49718249]
[1771008358363,11.64098752,85.21,85.151,9.49718249]
[1771008358959,10.5692,85.209,85.164,10.5746]
[1771008359162,3.17641832,85.2,85.164,10.5746]
[1771008359660,10.5692,85.209,85.165,9.49718249]
[1771008360060,3.17641832,85.2,85.165,9.49718249]
[1771008360258,3.17641832,85.21,85.169,9.49718249]
[1771008360759,3.17641832,85.21,85.125,21.1591]
[1771008360760,3.17641832,85.22,85.171,9.49718249]
[1771008361368,8.0249167,85.233,85.184,8.85720689]
[1771008361566,3.17641832,85.23,85.184,8.85720689]
[1771008361961,3.17641832,85.22,85.186,8.85720689]
[1771008363366,3.17641832,85.2,85.173,8.85720689]
[1771008363570,3.17641832,85.21,85.173,8.85720689]
[1771008364070,7.81067911,85.219,85.179,8.85720689]
[1771008364271,3.17641832,85.21,85.179,8.85720689]
[1771008366378,7.70082831,85.233,85.182,8.85720689]
[1771008366672,2.04264311,85.257,85.191,8.85720689]
[1771008366863,2.04264311,85.257,85.134,35.26]
[1771008366864,3.17641832,85.27,85.234,8.85720689]
[1771008367470,3.17641832,85.27,85.235,8.85720689]
[1771008367971,3.17641832,85.27,85.243,10.5648]
[1771008368172,7.5319301,85.281,85.243,10.5648]
[1771008368173,3.17641832,85.28,85.243,10.5648]
[1771008368974,177.37859667,85.292,85.243,10.5648]
[1771008369670,7.55228117,85.291,85.243,10.5648]
[1771008369870,10.5591,85.29,85.235,19.42310689]
[1771008370876,10.5591,85.29,85.242,10.5649]
[1771008371073,10.5591,85.29,85.198,8.85720689]
[1771008371273,8.49339248,85.28,85.198,8.85720689]
[1771008371477,8.49339248,85.28,85.22,8.85720689]
[1771008372179,7.44690657,85.279,85.22,8.85720689]
[1771008372574,7.44690657,85.275,85.22,8.85720689]
[1771008372775,7.44690657,85.275,85.167,10.70748826]
[1771008372776,7.42221538,85.259,85.182,8.85720689]
[1771008373677,7.421199,85.258,85.201,8.85720689]
[1771008374477,7.42580739,85.256,85.202,10.5699]
[1771008374677,7.42580739,85.256,85.202,19.42710689]
[1771008375082,7.42580739,85.256,85.21,10.569]
[1771008375379,114.49339248,85.26,85.211,8.85720689]
[1771008375682,114.49339248,85.26,85.22,10.5677]
[1771008375873,8.49339248,85.26,85.221,8.85720689]
[1771008376077,106.46,85.276,85.221,8.85720689]
[1771008376386,8.49339248,85.28,85.221,8.85720689]
[1771008377080,10.5583,85.296,85.237,8.85720689]
[1771008377282,8.49339248,85.3,85.237,8.85720689]
[1771008377283,7.43054146,85.299,85.237,8.85720689]
[1771008377986,10.5593,85.288,85.24,10.5652]
[1771008378185,7.35607999,85.287,85.195,8.85720689]
[1771008378391,7.35607999,85.279,85.195,8.85720689]
[1771008378885,17.8949863,85.267,85.22,10.5677]
[1771008379685,7.33196042,85.262,85.22,10.5677]
[1771008379882,7.33196042,85.262,85.209,8.85720689]
[1771008380079,8.50010661,85.27,85.209,8.85720689]
[1771008380483,15.81722711,85.27,85.227,10.5668]
[1771008380783,7.29455171,85.269,85.209,8.85720689]
[1771008381787,7.27124389,85.268,85.219,10.5678]
[1771008382884,10.5623,85.265,85.219,10.5678]
[1771008383082,7.23513134,85.264,85.21,10.5688]
[1771008383893,7.21336168,85.249,85.194,8.85720689]
[1771008384096,7.21336168,85.249,85.179,8.85720689]
[1771008384293,8.50010661,85.26,85.179,8.85720689]
[1771008384493,7.1630461,85.259,85.179,8.85720689]
[1771008384694,10.5645,85.247,85.204,10.5696]
[1771008384898,7.14151078,85.239,85.157,8.85720689]
[1771008385593,7.14151078,85.239,85.204,10.5697]
[1771008386193,7.32629826,85.232,85.183,10.5722]
[1771008386498,8.50010661,85.24,85.171,8.85720689]
[1771008387192,8.50010661,85.24,85.16,8.50010661]
[1771008387193,8.50010661,85.24,85.199,10.5702]
[1771008388691,10.5655,85.238,85.193,8.85720689]
[1771008389092,8.50010661,85.24,85.193,8.85720689]
[1771008389799,8.50010661,85.24,85.195,8.85720689]
[1771008390392,8.50010661,85.24,85.199,10.5702]
[1771008390998,7.11490606,85.239,85.182,8.30469158]
[1771008392299,7.11490606,85.239,85.192,8.30469158]
[1771008392495,7.11491334,85.264,85.192,8.30469158]
[1771008392695,8.50010661,85.28,85.201,8.30469158]
[1771008392894,8.50010661,85.28,85.225,8.30469158]
[1771008393299,10.559,85.291,85.245,10.5646]
[1771008393499,17.6369592,85.291,85.225,8.30469158]
[1771008393700,10.5593,85.288,85.225,8.30469158]
[1771008393997,7.04328679,85.287,85.225,8.30469158]
[1771008394194,10.5598,85.285,85.236,10.5657]
[1771008394398,7.14018996,85.284,85.236,10.5657]
[1771008396002,7.14018996,85.284,85.244,10.5647]
[1771008396795,10.5587,85.293,85.244,10.5647]
[1771008397001,7.03396483,85.299,85.251,10.5638]
[1771008398394,8.50010661,85.32,85.256,8.37618094]
[1771008398395,6.95505868,85.311,85.256,8.37618094]
[1771008398707,10.91687501,85.36,85.256,8.37618094]
[1771008398708,6.95505868,85.328,85.256,8.37618094]
[1771008398900,6.95505868,85.328,85.287,10.5593]
[1771008402893,6.95505868,85.328,85.278,10.5604]
[1771008403093,10.5533,85.337,85.279,8.37618094]
[1771008403299,93.64,85.339,85.279,8.37618094]
[1771008404099,8.50010661,85.34,85.301,10.5576]
[1771008404293,6.68205613,85.343,85.301,10.5576]
[1771008404996,107.22,85.351,85.304,10.5573]
[1771008405202,6.70303927,85.349,85.291,8.37618094]
[1771008405501,6.70303927,85.364,85.291,8.37618094]
[1771008405701,6.70303927,85.364,85.31,8.37618094]
[1771008406307,6.70303927,85.364,85.319,10.5554]
[1771008407004,6.70303927,85.364,85.322,10.5551]
[1771008407304,107.72,85.366,85.32,8.37618094]
[1771008407700,6.5592322,85.372,85.322,10.5551]
[1771008407906,6.5592322,85.359,85.322,10.5551]
[1771008408105,6.68286456,85.396,85.323,8.37618094]
[1771008408315,6.68286456,85.394,85.323,8.37618094]
[1771008408800,6.68286456,85.394,85.333,8.37618094]
[1771008409406,8.50010661,85.38,85.333,8.37618094]
[1771008409911,8.50010661,85.36,85.312,8.37618094]
[1771008410498,8.50010661,85.36,85.314,8.37618094]
[1771008410903,8.50010661,85.36,85.326,10.5545]
[1771008411098,8.50010661,85.38,85.327,8.37618094]
[1771008412209,6.52223554,85.381,85.331,10.5539]
[1771008412402,8.50010661,85.38,85.331,18.93008094]
[1771008412603,8.50010661,85.38,85.332,8.37618094]
[1771008412801,6.20725867,85.389,85.336,10.5533]
[1771008413003,6.20725867,85.389,85.336,8.37618094]
[1771008414208,6.00917615,85.387,85.336,18.92948094]
[1771008415114,5.98147915,85.369,85.321,8.37618094]
[1771008415613,5.98147915,85.369,85.322,10.5551]
[1771008415810,5.98147915,85.369,85.323,8.37618094]
[1771008416602,10.5497,85.366,85.323,8.37618094]
[1771008416812,5.96903104,85.366,85.323,8.37618094]
[1771008417410,10.5501,85.363,85.305,8.37618094]
[1771008417808,5.94224481,85.362,85.305,8.37618094]
[1771008418106,10.5518,85.349,85.305,8.37618094]
[1771008418502,101.36,85.379,85.305,8.37618094]
[1771008418503,6.2301879,85.359,85.305,8.37618094]
[1771008418922,6.20460504,85.357,85.306,8.37618094]
[1771008419110,8.50010661,85.34,85.261,8.37618094]
[1771008419306,8.50010661,85.34,85.285,8.37618094]
[1771008419307,6.20327739,85.339,85.285,8.37618094]
[1771008420402,10.5533,85.337,85.285,8.37618094]
[1771008420905,6.14000189,85.319,85.27,8.19333205]
[1771008421710,8.50010661,85.3,85.254,8.19333205]
[1771008423108,10.5559,85.316,85.263,8.19333205]
[1771008423717,10.5559,85.316,85.266,8.19333205]
[1771008425213,8.50010661,85.32,85.205,8.19333205]
[1771008425214,6.08366112,85.279,85.205,8.19333205]
[1771008425515,8.50010661,85.26,85.205,8.19333205]
[1771008425721,6.08366112,85.279,85.205,8.19333205]
[1771008426620,6.08366112,85.279,85.216,8.19333205]
[1771008426826,8.50010661,85.28,85.216,8.19333205]
[1771008427215,10.5595,85.279,85.219,8.19333205]
[1771008427920,8.50010661,85.28,85.221,8.19333205]
[1771008428822,8.50010661,85.28,85.23,8.19333205]
[1771008430414,15.54622851,85.289,85.23,8.19333205]
[1771008431725,15.54622851,85.289,85.234,8.19333205]
[1771008431922,4.94440537,85.284,85.234,8.19333205]
[1771008432316,4.94440537,85.284,85.234,10.5649]
[1771008432520,4.94440537,85.284,85.235,8.19333205]
[1771008433725,10.5589,85.283,85.235,8.19333205]
[1771008434030,10.5554,85.312,85.25,8.19333205]
[1771008434231,13.40057278,85.32,85.25,8.19333205]
[1771008435130,10.5545,85.319,85.266,8.19333205]
[1771008436022,10.5545,85.319,85.267,18.75413205]
[1771008436326,4.95689361,85.318,85.267,8.19333205]
[1771008437025,4.93633867,85.359,85.272,8.19333205]
[1771008437628,10.5507,85.349,85.294,8.19333205]
[1771008438825,10.5507,85.349,85.298,8.19333205]
[1771008439026,4.77055051,85.358,85.298,8.19333205]
[1771008439522,35.26,85.406,85.28,8.50010661]
[1771008439523,107.8,85.371,85.301,8.19333205]
[1771008439716,4.77055051,85.37,85.301,8.19333205]
[1771008440720,15.31070548,85.365,85.306,8.19333205]
[1771008441231,4.76195929,85.364,85.306,8.19333205]
[1771008442033,93.58,85.379,85.313,8.19333205]
[1771008442232,4.65763878,85.378,85.313,8.19333205]
[1771008442428,4.65763878,85.378,85.325,8.19333205]
[1771008442634,10.5463,85.385,85.325,8.19333205]
[1771008442933,107.72,85.393,85.325,8.19333205]
[1771008443334,4.65763878,85.394,85.338,8.19333205]
[1771008444529,107.72,85.411,85.273,8.19333205]
[1771008444530,4.61812146,85.346,85.273,8.19333205]
[1771008445328,8.47976467,85.33,85.283,10.5589]
[1771008446038,8.47976467,85.33,85.275,8.19333205]
[1771008446432,3.88002076,85.329,85.275,8.19333205]
[1771008446632,3.88002076,85.32,85.258,8.19333205]
[1771008447536,3.88002076,85.32,85.263,8.19333205]
[1771008447737,8.47976467,85.33,85.263,8.19333205]
[1771008447935,8.47976467,85.37,85.263,8.19333205]
[1771008447936,93.56,85.343,85.263,8.19333205]
[1771008448526,12.03950044,85.35,85.263,8.19333205]
[1771008448732,10.5512,85.346,85.292,8.19333205]
[1771008449932,3.52532607,85.34,85.292,8.19333205]
[1771008451331,10.5497,85.357,85.292,8.19333205]
[1771008452439,10.5497,85.357,85.303,10.5563]
[1771008452638,10.5497,85.357,85.303,18.31379488]
[1771008453034,3.58290761,85.358,85.306,18.31339488]
[1771008453234,3.58290761,85.358,85.242,21.13201764]
[1771008453235,8.47976467,85.37,85.307,7.75749488]
[1771008453637,3.64272693,85.369,85.307,7.75749488]
[1771008454140,8.47976467,85.37,85.307,7.75749488]
[1771008454141,14.16723752,85.358,85.307,7.75749488]
[1771008454328,3.61753752,85.358,85.307,7.75749488]
[1771008455434,10.5485,85.368,85.307,7.75749488]
[1771008456033,3.539739,85.367,85.307,7.75749488]
[1771008456241,14.088339,85.366,85.316,10.5547]
[1771008456444,3.539739,85.377,85.317,7.75749488]
[1771008457741,10.5474,85.376,85.325,7.89624144]
[1771008457933,8.47976467,85.39,85.325,7.89624144]
[1771008458337,3.50198514,85.395,85.342,7.89624144]
[1771008459136,3.50198514,85.395,85.349,10.5506]
[1771008459344,8.47976467,85.41,85.35,7.89624144]
[1771008459737,14.06231215,85.402,85.355,10.5498]
[1771008459933,3.51811215,85.419,85.35,7.89624144]
[1771008460438,10.5434,85.408,85.35,7.89624144]
[1771008460740,14.06272592,85.408,85.35,7.89624144]
[1771008461737,14.06272592,85.408,85.356,10.5498]
[1771008462141,10.5422,85.418,85.35,7.89624144]
[1771008462342,3.51160633,85.426,85.371,7.89624144]
[1771008463733,2.06619987,85.451,85.389,7.89624144]
[1771008464543,9.987e-05,85.451,85.41,7.89624144]
[1771008465250,9.987e-05,85.451,85.446,7.89624144]
[1771008466034,9.987e-05,85.451,85.411,7.89624144]
[1771008466437,9.987e-05,85.451,85.4,8.47976467]
[1771008466438,9.987e-05,85.451,85.424,7.89624144]
[1771008466836,9.987e-05,85.451,85.426,10.5411]
[1771008467244,9.987e-05,85.451,85.424,7.89624144]
[1771008467443,9.987e-05,85.451,85.408,7.89624144]
[1771008468034,9.987e-05,85.451,85.38,8.47976467]
[1771008468035,9.987e-05,85.451,85.425,10.5412]
[1771008468241,9.987e-05,85.451,85.426,7.89624144]
[1771008469437,9.987e-05,85.451,85.443,10.539]
[1771008469646,9.987e-05,85.451,85.426,7.89624144]
[1771008470643,9.987e-05,85.451,85.405,7.89624144]
[1771008471645,9.987e-05,85.451,85.329,164.1598]
[1771008471646,3.30467922,85.425,85.358,7.89624144]
[1771008471845,8.47976467,85.4,85.358,7.89624144]
[1771008472241,8.47976467,85.38,85.333,7.89624144]
[1771008472448,8.47976467,85.38,85.291,7.89624144]
[1771008472939,8.47976467,85.38,85.261,164.2909]
[1771008472940,3.07084861,85.379,85.313,7.89624144]
[1771008473547,3.07212142,85.377,85.313,7.89624144]
[1771008474050,3.0512798,85.375,85.313,7.89624144]
[1771008474351,8.47976467,85.36,85.303,10.5563]
[1771008475053,8.47976467,85.36,85.294,7.89624144]
[1771008475242,2.19189713,85.358,85.294,7.89624144]
[1771008475642,2.19189713,85.357,85.294,7.89624144]
[1771008476245,107.02,85.356,85.294,7.89624144]
[1771008476445,2.21699504,85.356,85.294,7.89624144]
[1771008476648,2.21699504,85.353,85.294,7.89624144]
[1771008477051,2.21699504,85.353,85.295,7.89624144]
[1771008477453,8.47976467,85.36,85.295,7.89624144]
[1771008478253,2.17391415,85.359,85.295,7.89624144]
[1771008479253,2.15644452,85.354,85.284,10.5587]
[1771008479652,2.13706538,85.319,85.25,7.89624144]
[1771008480448,2.16641614,85.317,85.25,7.89624144]
[1771008481149,10.5552,85.313,85.25,7.89624144]
[1771008481753,2.1372596,85.312,85.232,10.5651]
[1771008481950,2.11847002,85.309,85.233,7.3335344]
[1771008482351,2.11649952,85.299,85.233,7.3335344]
[1771008482655,2.11649952,85.297,85.233,7.3335344]
[1771008483048,8.47976467,85.3,85.235,7.3335344]
[1771008483855,95.60158906,85.311,85.242,7.3335344]
[1771008484056,2.08158906,85.31,85.242,7.3335344]
[1771008484953,12.67758585,85.308,85.245,7.3335344]
[1771008485153,8.47976467,85.32,85.245,7.3335344]
[1771008485353,2.12372407,85.319,85.245,7.3335344]
[1771008486055,2.10585372,85.318,85.247,7.3335344]
[1771008487960,10.5549,85.315,85.251,7.3335344]
[1771008488855,10.5549,85.315,85.22,8.47976467]
[1771008488856,10.5549,85.315,85.253,7.3335344]
[1771008489359,10.5549,85.315,85.254,10.5623]
[1771008490160,12.42872071,85.315,85.254,10.5623]
[1771008490462,12.42872071,85.315,85.254,17.8958344]
[1771008491163,12.42872071,85.315,85.255,7.3335344]
[1771008491360,12.42872071,85.315,85.256,10.5622]
[1771008491556,1.85886803,85.335,85.26,8.47976467]
[1771008491758,1.84211955,85.359,85.261,7.3335344]
[1771008492067,10.5499,85.356,85.296,7.3335344]
[1771008492568,1.86191234,85.346,85.261,7.3335344]
[1771008493162,10.5518,85.341,85.282,10.5589]
[1771008493359,1.86191234,85.346,85.28,7.3335344]
[1771008493556,1.84730926,85.339,85.28,7.3335344]
[1771008493753,1.84730926,85.339,85.213,35.17]
[1771008493754,1.84730926,85.339,85.261,7.3335344]
[1771008493968,106.7,85.338,85.261,7.3335344]
[1771008494264,1.89037273,85.359,85.261,7.3335344]
[1771008494453,106.72,85.352,85.261,7.3335344]
[1771008494660,106.72,85.352,85.288,7.3335344]
[1771008495269,1.876016,85.351,85.288,7.3335344]
[1771008495662,1.876016,85.369,85.288,7.3335344]
[1771008495966,10.5503,85.352,85.288,7.3335344]
[1771008496754,10.5503,85.352,85.289,7.3335344]
[1771008497861,10.5503,85.352,85.294,7.3335344]
[1771008498866,10.5503,85.352,85.297,7.3335344]
[1771008499761,10.5517,85.342,85.28,7.3335344]
[1771008500160,1.81722191,85.349,85.28,8.47976467]
[1771008500365,10.551,85.347,85.281,7.3335344]
[1771008500566,1.81722191,85.349,85.281,7.3335344]
[1771008501267,10.5509,85.348,85.281,7.3335344]
[1771008501972,10.5498,85.356,85.298,7.3335344]
[1771008502262,1.78753593,85.365,85.298,7.3335344]
[1771008502967,1.8516357,85.363,85.298,7.3335344]
[1771008503167,10.552,85.339,85.298,7.3335344]
[1771008503369,10.552,85.339,85.271,7.3335344]
[1771008504059,10.5529,85.332,85.28,7.3335344]
[1771008504456,1.85322912,85.347,85.28,7.3335344]
[1771008504671,10.5517,85.341,85.29,7.3335344]
[1771008505464,10.5517,85.341,85.293,7.3335344]
[1771008505672,1.85322912,85.347,85.293,7.3335344]
[1771008505972,10.5507,85.349,85.293,7.3335344]
[1771008506673,10.5516,85.342,85.294,7.3335344]
[1771008506971,1.8039526,85.367,85.294,7.3335344]
[1771008507763,10.5505,85.351,85.296,7.3335344]
[1771008508567,10.5505,85.351,85.3,7.3335344]
[1771008508977,10.5513,85.345,85.3,7.3335344]
[1771008509566,10.5513,85.345,85.301,10.5566]
[1771008510569,10.5513,85.345,85.302,7.3335344]
[1771008512672,10.551,85.347,85.302,7.3335344]
[1771008513175,10.5528,85.333,85.287,7.11654013]
[1771008513668,11.96200739,85.333,85.287,7.11654013]
[1771008513868,8.4816397,85.35,85.287,7.11654013]
[1771008513869,10.5518,85.34,85.287,7.11654013]
[1771008514079,1.40920739,85.349,85.287,7.11654013]
[1771008514267,1.39592121,85.366,85.312,7.11654013]
[1771008514467,1.39592121,85.384,85.312,7.11654013]
[1771008514878,1.39592121,85.384,85.317,17.67114013]
[1771008515172,10.5493,85.361,85.318,7.11654013]
[1771008515375,1.38488825,85.367,85.302,7.11654013]
[1771008515565,115.1816397,85.37,85.304,7.11654013]
[1771008515566,1.38488825,85.365,85.304,7.11654013]
[1771008515772,1.37237988,85.363,85.304,7.11654013]
[1771008516071,10.551,85.347,85.304,7.11654013]
[1771008516876,1.35244954,85.34,85.284,7.29797267]
[1771008517771,1.35244954,85.34,85.27,8.4816397]
[1771008517772,10.5529,85.332,85.287,7.29797267]
[1771008518779,10.5529,85.332,85.29,10.558]
[1771008519577,10.5529,85.332,85.29,17.85597267]
[1771008520175,10.5529,85.332,85.251,21.1255]
[1771008520176,10.5539,85.324,85.278,10.5594]
[1771008520376,10.5539,85.324,85.279,7.29797267]
[1771008521676,1.26805311,85.326,85.268,10.5607]
[1771008521976,1.25653912,85.324,85.263,7.29797267]
[1771008522173,1.27314712,85.323,85.263,7.29797267]
[1771008522774,10.5567,85.301,85.263,7.29797267]
[1771008524778,1.29516398,85.309,85.216,7.29797267]
[1771008524974,1.28405805,85.307,85.216,7.29797267]
[1771008525179,1.28546399,85.305,85.234,7.29797267]
[1771008525777,1.27451542,85.303,85.234,7.29797267]
[1771008525983,10.5603,85.272,85.234,7.29797267]
[1771008526174,1.27451542,85.289,85.234,7.29797267]
[1771008527783,10.5602,85.273,85.234,7.29797267]
[1771008531085,10.5602,85.273,85.216,7.29797267]
[1771008531284,10.561,85.266,85.216,7.29797267]
[1771008531782,10.561,85.266,85.19,8.4816397]
[1771008531783,10.5598,85.276,85.226,7.29797267]
[1771008533083,10.5598,85.276,85.229,7.29797267]
[1771008533280,1.31183643,85.261,85.183,7.29797267]
[1771008533481,8.4816397,85.24,85.183,7.29797267]
[1771008533689,1.31183643,85.239,85.183,7.29797267]
[1771008534390,1.31183643,85.239,85.16,8.4816397]
[1771008534391,1.31183643,85.239,85.186,7.29797267]
[1771008536293,10.5646,85.237,85.186,7.29797267]
[1771008536489,1.31183643,85.239,85.176,10.5721]
[1771008536892,10.5656,85.229,85.177,7.29797267]
[1771008537886,10.5662,85.225,85.177,7.29797267]
[1771008538299,11.65762539,85.225,85.177,7.29797267]
[1771008538596,10.5664,85.223,85.177,7.29797267]
[1771008539594,10.5668,85.219,85.167,10.5732]
[1771008539799,11.65000341,85.219,85.167,10.5732]
[1771008540299,0.93253707,85.21,85.162,7.29797267]
[1771008540692,0.93253707,85.21,85.11,21.1606]
[1771008540693,0.91973329,85.2,85.143,6.84434355]
[1771008541094,0.91973329,85.216,85.143,6.84434355]
[1771008541303,10.5682,85.208,85.155,6.84343657]
[1771008541497,0.92154724,85.207,85.155,6.84343657]
[1771008541903,11.48984724,85.207,85.155,17.41813657]
[1771008542102,0.90066787,85.224,85.156,6.84934038]
[1771008542699,0.90066787,85.224,85.157,6.84934038]
[1771008544697,10.5671,85.217,85.161,10.574]
[1771008544902,10.5671,85.217,85.162,6.69569834]
[1771008545100,0.90066787,85.224,85.162,6.69569834]
[1771008546700,10.568,85.209,85.162,6.69569834]
[1771008549306,3.17676993,85.21,85.162,6.69569834]
[1771008549498,3.17676993,85.2,85.162,6.69569834]
[1771008551803,10.5679,85.21,85.165,6.69611665]
[1771008552110,13.74466993,85.21,85.165,6.69611665]
[1771008552810,13.74466993,85.21,85.167,6.69230584]
[1771008553599,10.5671,85.217,85.171,6.69182162]
[1771008553805,1.11442723,85.257,85.191,6.69182162]
[1771008554011,3.17676993,85.25,85.211,6.69320434]
[1771008554403,1.11442723,85.257,85.191,6.69320434]
[1771008554404,3.17676993,85.24,85.191,6.69320434]
[1771008554601,3.17676993,85.24,85.193,6.69320434]
[1771008555009,1.11442723,85.257,85.193,6.69320434]
[1771008555512,10.5625,85.254,85.195,6.69272174]
[1771008556706,10.5625,85.254,85.201,6.64632119]
[1771008557511,10.5625,85.254,85.206,6.64632119]
[1771008557711,1.41756501,85.279,85.206,6.64632119]
[1771008558120,1.41756501,85.279,85.221,10.5664]
[1771008558414,10.5611,85.265,85.206,6.64632119]
[1771008558614,1.55264644,85.264,85.206,6.64632119]
[1771008559318,1.54577926,85.259,85.207,6.64632119]
[1771008560516,10.5628,85.252,85.207,6.64632119]
[1771008562116,10.5635,85.246,85.207,6.64632119]
[1771008565819,10.5659,85.227,85.17,6.64632119]
[1771008566323,1.42331992,85.239,85.174,6.64632119]
[1771008566624,21.1254,85.253,85.123,21.1573]
[1771008566625,1.42331992,85.219,85.141,6.64632119]
[1771008567420,10.5691,85.201,85.156,6.64632119]
[1771008568426,1.42331992,85.219,85.13,8.50220546]
[1771008568427,10.568,85.21,85.159,6.64632119]
[1771008569129,1.42331992,85.219,85.159,6.64632119]
[1771008569130,10.5687,85.204,85.159,6.64632119]
[1771008571529,1.42331992,85.219,85.161,6.53384332]
[1771008572816,10.567,85.218,85.165,6.53424866]
[1771008573623,1.2834461,85.235,85.17,6.53393506]
[1771008574728,1.2834461,85.235,85.182,6.56803965]
[1771008574729,10.5661,85.225,85.182,6.56803965]
[1771008574930,3.1754857,85.22,85.182,6.56803965]
[1771008575825,3.1754857,85.22,85.183,10.5712]
[1771008576627,10.5652,85.232,85.17,3.1754857]
[1771008576628,10.5652,85.232,85.186,10.5709]
[1771008576828,3.1754857,85.22,85.184,6.57420775]
[1771008577733,3.1754857,85.22,85.184,17.14520775]
[1771008578132,3.1754857,85.23,85.184,17.14520775]
[1771008579733,3.1754857,85.24,85.194,6.57317075]
[1771008579931,13.7384857,85.25,85.201,6.57317075]
[1771008580236,3.1754857,85.25,85.201,6.57317075]
[1771008581339,10.5621,85.257,85.204,6.55343696]
[1771008582333,1.1875462,85.265,85.204,6.55343696]
[1771008582334,3.1754857,85.24,85.204,6.55343696]
[1771008582533,4.44092322,85.24,85.181,6.52148238]
[1771008583432,3.1754857,85.21,85.181,6.52148238]
[1771008583636,3.1754857,85.21,85.166,6.52148238]
[1771008584039,3.1754857,85.21,85.173,10.5724]
[1771008584439,3.1754857,85.22,85.174,6.54058442]
[1771008585239,13.7421857,85.22,85.174,6.54058442]
[1771008585442,3.1754857,85.21,85.174,6.54058442]
[1771008586237,13.7421857,85.22,85.174,6.54058442]
[1771008586844,13.7421857,85.22,85.177,6.52148238]
[1771008587844,13.7421857,85.22,85.178,10.5718]
[1771008588043,13.7421857,85.22,85.178,17.09328238]
[1771008588247,13.7421857,85.22,85.179,6.52148238]
[1771008588746,3.1754857,85.22,85.183,6.52148238]
[1771008589339,3.1754857,85.24,85.205,6.52148238]
[1771008589537,3.1754857,85.24,85.191,6.52148238]
[1771008590447,3.1754857,85.23,85.191,6.52148238]
[1771008591247,3.1754857,85.22,85.191,6.52148238]
[1771008591754,3.1754857,85.22,85.171,6.5377271]
[1771008592850,3.1754857,85.22,85.186,10.5708]
[1771008595658,3.1754857,85.22,85.179,6.52148238]
[1771008596056,3.1754857,85.21,85.179,6.52148238]
[1771008596566,3.1754857,85.23,85.192,6.52148238]
[1771008597863,3.1754857,85.23,85.198,6.52148238]
[1771008598560,10.5644,85.239,85.198,6.52148238]
[1771008599154,3.1754857,85.23,85.183,10.5711]
[1771008599350,3.1754857,85.2,85.164,6.52148238]
[1771008600858,3.1754857,85.2,85.173,10.5725]
[1771008601470,3.1754857,85.2,85.165,10.5734]
[1771008601654,3.1754857,85.2,85.164,6.52148238]
[1771008602061,3.1754857,85.19,85.15,6.96686203]